[Event "44th Chess Olympiad Open 2022"]
[Site "Chennai"]
[Date "2022.08.01"]
[Round "4.44"]
[White "Kwong, Wing Ki"]
[Black "De La Riva Aguado, Oscar"]
[Result "0-1"]
[WhiteElo "1824"]
[BlackElo "2424"]
[Annotator "TA"]
[PlyCount "150"]
[EventDate "2022.??.??"]
[TimeControl "60"]

{[%evp 21,150,6,33,18,22,16,37,34,25,51,154,147,168,72,71,-30,14,5,0,8,10,18,
36,40,61,52,19,0,24,-153,-168,-493,-493,-1329,-338,-331,-329,-422,-418,-408,
-402,-436,-431,-522,-290,-285,-276,-411,-375,-355,-329,-726,-714,-693,-679,
-664,-402,-368,-302,-402,-402,-402,-402,-402,-402,-402,-295,-255,0,-402,-325,
-402,-402,-402,-402,-605,-402,-444,-402,-402,-387,-420,-402,-395,-395,-770,
-1396,-1375,-1324,-1318,-1366,-937,-922,-1014,-253,-675,-596,-772,-1231,-1047,
-1033,-931,-611,-749,-403,-398,-385,-596,-589,-426,-334,-589,-568,-445,-356,
-29977,-29978,-29978,-29979,-29979,-29980,-29965,-1634,-579,-549,-29996,-29997,
-29997,-29998,-29998,-29999]} 1. d4 {[%emt 0:00:07]} f5 {[%emt 0:00:22]} 2. Nf3
{[%emt 0:00:40]} Nf6 {[%emt 0:00:22]} 3. g3 {[%emt 0:01:00]} g6 {[%emt 0:00:29]
} 4. Bg2 {[%emt 0:00:39]} Bg7 {[%emt 0:00:13]} 5. O-O {[%emt 0:00:42]} O-O {
[%emt 0:00:24]} 6. c4 {[%emt 0:00:37]} d6 {[%emt 0:00:15]} 7. Nc3 {[%emt 0:00:
00]} c6 {[%emt 0:01:28]} 8. Qc2 {[%emt 0:02:46]} Na6 {[%emt 0:04:23][%cal
Yb8a6,Ya6c7,Yc7e6,Ye6c5]} 9. a3 {[%emt 0:01:00]} Qe8 {[%emt 0:03:04]} 10. d5 {
[%emt 0:11:23]} Bd7 {[%emt 0:10:14]} 11. dxc6 {[%emt 0:12:15]} bxc6 {[%emt 0:
01:47]} 12. b4 {[%emt 0:00:42] A88: Dutch Defence: Leningrad System: 5 Nf3 0-0
6 0-0 d6 7 Nc3 c6.} Nc7 {[%emt 0:01:14]} 13. Rd1 {[%emt 0:05:55]} (13. c5 {
keeps more tension.} dxc5 14. Ne5 Ng4 15. Nxg4 fxg4 16. Bb2) 13... Ne6 {
[%emt 0:05:23] [#]} 14. Bb2 $146 {[%emt 0:01:20] White is slightly better.} ({
Predecessor:} 14. Rb1 Rc8 15. a4 Nd8 16. a5 Nf7 17. a6 e5 18. Ng5 Qe7 19. Nxf7
Rxf7 20. Bg5 {0-1 (43) Brown,A (2013)-Kottahachchy,K (2017) Vung Tau 2008})
14... f4 {[%emt 0:04:55]} 15. c5 {[%emt 0:05:27]} fxg3 {[%emt 0:04:56]} (15...
d5 $14) 16. hxg3 $16 {[%emt 0:00:28]} dxc5 {[%emt 0:04:02][%cal Ye6d4]} 17.
bxc5 {[%emt 0:01:45]} (17. Ne4 $18 {and White stays clearly on top.}) 17...
Nxc5 {[%emt 0:01:48]} 18. Ne5 {[%emt 0:14:51]} (18. Na4 $16 Nxa4 19. Qxa4)
18... Bf5 {[%emt 0:06:31]} (18... Rb8 $5 {[%cal Rd7f5]}) 19. e4 {[%emt 0:01:07]
} Be6 {[%emt 0:00:43]} 20. Ne2 {[%emt 0:03:40]} Rb8 {[%emt 0:12:27][%cal Ya8b8,
Yb8b2,Yb2d2,Yd2d6]} 21. Nf4 {[%emt 0:15:27]} Bb3 {[%emt 0:16:45]} 22. Qxc5 {
[%emt 0:01:26]} Bxd1 {[%emt 0:00:12]} 23. Rxd1 {[%emt 0:02:04]} Rxb2 {[%emt 0:
00:04]} 24. Nxc6 {[%emt 0:01:20] Pair of Knights!} Kh8 {[%emt 0:03:50]} 25. Ne6
$2 {[%emt 0:01:50]} (25. Rd8 $1 $11 Qf7 26. Ne5 Rb1+ 27. Bf1) 25... Nd7 $17 {
[%emt 0:04:15]} 26. Qxa7 {[%emt 0:03:50]} (26. Rxd7 {is more resistant.} Qxd7
27. Nxf8 Qd1+ 28. Bf1) 26... Rfxf2 $19 {[%emt 0:00:59]} 27. Bf1 {[%emt 0:00:00]
[#]} (27. Qxf2 Rxf2 28. Kxf2 Qf7+ 29. Nf4 e5 $19) (27. Bh3 $142 Qf7 28. Qe3 (
28. Qxd7 $2 Rg2+ 29. Bxg2 Qf2+ 30. Kh2 Qxg2#)) 27... Rfd2 $2 {[%emt 0:00:00]} (
27... Qf7 $1 {[%cal Yf7f3] ( -> ...Qf3!)} 28. Nf4 {[#]} (28. Ng5 Qb3) 28... Qb3
$1) 28. Rxd2 {[%emt 0:00:38]} Rxd2 {[%emt 0:00:04]} 29. Nxg7 {[%emt 0:03:28]}
Kxg7 {[%emt 0:00:14]} 30. Qe3 {[%emt 0:00:16]} Rd6 {[%emt 0:00:00]} 31. Qc3+ {
[%emt 0:00:32]} e5 {[%emt 0:00:18]} 32. Bh3 {[%emt 0:00:53]} Nf6 {[%emt 0:01:
21]} 33. Nxe5 {[%emt 0:00:24] Black must now prevent Qc7+.} Qe7 {[%emt 0:07:52]
Prevents Qc7.} ({Not} 33... Nxe4 34. Qc7+ Kf8 35. Nd7+ Kg7 36. Ne5+ (36. Nc5+
$2 Kh6 $19) 36... Kf8 37. Nd7+ Kg7 38. Ne5+ $11 (38. Nc5+ $2 Kh6 $19)) 34. Ng4
{[%emt 0:00:36]} (34. Bg2 $142) 34... Qxe4 {[%emt 0:01:54]} 35. Nxf6 {[%emt 0:
00:31]} Rxf6 {[%emt 0:00:16] Endgame KQR-KQB} 36. Qc7+ $2 {[%emt 0:00:27]} (36.
Bg2 Qb1+ 37. Kh2) 36... Kh6 {[%emt 0:00:33]} 37. Qc1+ {[%emt 0:00:31]} g5 {
[%emt 0:00:28]} 38. Bg2 {[%emt 0:00:23]} Qd4+ {[%emt 0:00:00]} 39. Kh2 {
[%emt 0:00:18]} Kg6 {[%emt 0:01:07]} 40. Qc2+ {[%emt 0:00:48]} Kg7 {[%emt 0:03:
56]} 41. Qc7+ {[%emt 0:03:47]} Rf7 {[%emt 0:00:00]} 42. Qa5 {[%emt 0:04:25]}
Kg6 {[%emt 0:02:17]} 43. Qa6+ {[%emt 0:00:33]} Rf6 {[%emt 0:00:00]} 44. Qb7 {
[%emt 0:01:53]} Rf7 $2 {[%emt 0:00:18]} (44... Re6 $19 {Threatens to win with .
..h5.} 45. Qb3 Qe5 46. Qb1+ Qf5) 45. Qc6+ $2 {[%emt 0:00:00]} (45. Qa6+ $1 $11
Rf6 46. Qb7) 45... Qf6 {[%emt 0:00:58]} 46. Qe8 {[%emt 0:02:47]} Kg7 {[%emt 0:
00:46]} 47. Qe2 {[%emt 0:00:51]} Re7 {[%emt 0:00:46]} 48. Qg4 {[%emt 0:02:01]}
(48. Qd3 $142) 48... Qh6+ {[%emt 0:00:00]} 49. Kg1 {[%emt 0:00:50]} Qb6+ {
[%emt 0:00:22]} 50. Kh2 {[%emt 0:00:21]} Qe3 {[%emt 0:00:09]} 51. Qb4 {[%emt 0:
01:16]} h5 {[%emt 0:01:59] ...Qe5 is the strong threat.} 52. a4 {[%emt 0:04:05]
} Qe5 {[%emt 0:00:24] Strongly threatening ...h4.} 53. Kh3 {[%emt 0:01:47]
Against h4} (53. Qb5) 53... Rc7 {[%emt 0:04:09][%cal Yh5h4]} 54. Qb5 {[%emt 0:
11:36]} Rc5 {[%emt 0:10:18]} 55. Qd7+ {[%emt 0:00:43]} Kh6 {[%emt 0:00:05]} 56.
Qd8 {[%emt 0:00:28]} Rc7 {[%emt 0:05:46][%cal Yh5h4]} 57. Qf8+ {[%emt 0:00:17]}
Rg7 $2 {[%emt 0:00:14]} (57... Kh7 {aiming for ...g4+.} 58. Bf1 Qe6+ 59. Kh2
Rc2+ 60. Bg2 h4) 58. Qh8+ $2 {[%emt 0:00:26]} (58. Bf1) 58... Kg6 {[%emt 0:00:
04]} 59. Qa8 {[%emt 0:00:00]} Re7 {[%emt 0:01:38]} (59... g4+ $142 60. Kh2 h4
61. Be4+ Kg5 62. Qd8+ Re7 63. Qg8+ Rg7 64. Qd8+ Re7 65. Qg8+ Qg7 66. Qd5+ Re5
67. Qd8+ Kh6) 60. Qg8+ {[%emt 0:00:28]} Kh6 {[%emt 0:00:10]} 61. Qf8+ {[%emt 0:
00:26]} Kh7 {[%emt 0:00:00] And now ...g4+ would win.} 62. Bf1 {[%emt 0:00:51]
White threatens Bd3+ and mate.} Qe6+ {[%emt 0:00:31]} ({Weaker is} 62... Qe4
63. Bd3 Qxd3 64. Qxe7+ Kg6 65. Qe8+ Kh6 66. Qh8+ Kg6 67. Qe8+ Kh6 68. Qh8+ Kg6
69. Qe8+ $11) 63. Kh2 {[%emt 0:00:07] Intending Bd3+ and mate.} Rd7 {[%emt 0:
00:08] Against Bd3+. Hoping for ...Rd2+.} 64. Qf3 {[%emt 0:00:32]} (64. Qc5 {
was worth a try.} Qf6 65. Bg2) 64... Rd2+ {[%emt 0:00:50]} 65. Kg1 {[%emt 0:00:
31]} Kh6 {[%emt 0:00:00]} 66. Qf8+ $2 {[%emt 0:00:28]} (66. a5) 66... Kg6 {
[%emt 0:00:08]} 67. Qf3 {[%emt 0:00:26] Inhibits Qe3+.} Qd5 {[%emt 0:00:40]}
68. Qf8 $2 {[%emt 0:00:43]} (68. Qe3 $19) 68... Qd4+ {[%emt 0:00:09]} 69. Kh1 {
[%emt 0:00:05]} Qe4+ {[%emt 0:00:05]} 70. Kg1 {[%emt 0:00:05]} Qe3+ {[%emt 0:
01:02]} 71. Kh1 {[%emt 0:00:06]} Qe6 {[%emt 0:00:40]} (71... h4 $142 72. Bg2
Qe1+ 73. Bf1 Qe4+ 74. Kg1 Qd4+ 75. Kh1 hxg3 76. Qg8+ Kf5 77. Bh3+ Kf4 78. Qb8+
Qd6 79. Qxd6+ Rxd6 80. Kg1 Rd1+ 81. Kg2 g4 82. Bxg4 Kxg4 83. a5 Rd2+ 84. Kf1
g2+ 85. Kg1 Kg3 86. a6 Rd1#) 72. Bg2 {[%emt 0:01:07]} h4 {[%emt 0:00:23]} 73.
Qa8 {[%emt 0:01:19]} Qe1+ {[%emt 0:00:26] Black mates.} 74. Kh2 {[%emt 0:00:13]
} Qxg3+ {[%emt 0:00:00]} 75. Kh1 {[%emt 0:00:08]} Rd1+ {[%emt 0:00:06] Black
used his chance. Weighted Error Value: White=0.89/Black=0.55} 0-1

[Event "44th Chess Olympiad Open 2022"]
[Site "Chennai"]
[Date "2022.08.01"]
[Round "4.45"]
[White "Pasko, Llambi"]
[Black "Al Maashani, Amer"]
[Result "1-0"]
[WhiteElo "2418"]
[BlackElo "1947"]
[Annotator "TA"]
[PlyCount "63"]
[EventDate "2022.??.??"]
[TimeControl "60"]

{[%evp 13,63,44,51,31,31,23,39,42,76,24,29,16,28,0,0,20,14,0,0,0,114,110,104,
105,92,96,100,74,68,81,86,81,76,69,120,95,126,110,391,386,383,375,533,547,535,
541,968,970,983,968,1426,1259]} 1. d4 {[%emt 0:00:02]} d5 {[%emt 0:00:15]} 2.
c4 {[%emt 0:00:10]} dxc4 {[%emt 0:00:10]} 3. e3 {[%emt 0:00:05][%cal Ye2e3,
Ye3d4]} e5 {[%emt 0:03:20]} 4. Bxc4 {[%emt 0:01:34]} exd4 {[%emt 0:00:00]} 5.
exd4 {[%emt 0:01:28]} Nf6 {[%emt 0:01:25]} 6. Nf3 {[%emt 0:02:04]} Bb4+ {
[%emt 0:07:07]} 7. Nc3 {[%emt 0:02:52]} O-O {[%emt 0:00:58]} 8. h3 {[%emt 0:00:
00] D20: Queen's Gambit Accepted: 3 e3 and 3 e4.} c5 {[%emt 0:05:59]} 9. O-O {
[%emt 0:08:36] [#]} cxd4 $146 {[%emt 0:10:05]} ({Predecessor:} 9... h6 10. Be3
Nbd7 11. Qb3 Qa5 12. Rfd1 Bxc3 13. bxc3 cxd4 14. Rxd4 Nc5 15. Qb4 Qxb4 16. cxb4
{1-0 (25) Szabo,Z (2225)-Szakolczai,P (2225) Hungary 1995}) 10. Nxd4 {[%emt 0:
00:00] White is slightly better.} Nbd7 {[%emt 0:05:47]} 11. Qb3 {[%emt 0:05:57]
} ({Better is} 11. Bf4 $16) 11... Qa5 $11 {[%emt 0:07:10]} 12. Bd2 {[%emt 0:00:
00]} Ne5 {[%emt 0:03:53][%cal Yc8h3]} 13. Be2 {[%emt 0:10:44]} Rd8 {[%emt 0:00:
00]} 14. Be3 {[%emt 0:00:32]} Bd7 {[%emt 0:05:57]} 15. Bg5 {[%emt 0:04:41]}
Bxh3 {[%emt 0:09:44]} 16. Rad1 {[%emt 0:08:01]} Bd7 {[%emt 0:07:08]} (16...
Bxc3 $11 17. bxc3 Bd7) 17. Bxf6 $16 {[%emt 0:00:16]} gxf6 {[%emt 0:00:03]} 18.
Nd5 {[%emt 0:00:23] Pair of Knights!} Ba4 {[%emt 0:04:57]} 19. Qg3+ {[%emt 0:
00:00]} (19. Qxb4 $6 Rxd5 20. Qxa5 Rxa5 $11) 19... Ng6 {[%emt 0:00:38]} 20. Nb3
{[%emt 0:00:06] White is much more active. The black rooks are badly placed.}
Bxb3 {[%emt 0:01:01]} 21. Qxb3 {[%emt 0:00:14]} Bd2 {[%emt 0:01:30]} 22. Nxf6+
{[%emt 0:00:57][%cal Yd5f6,Yf6h5,Yh5f6]} Kg7 {[%emt 0:01:30]} 23. Nh5+ {
[%emt 0:00:33]} Kg8 {[%emt 0:00:47]} ({Black should play} 23... Kf8 $1 $14) 24.
Qxb7 {[%emt 0:04:31][%cal Ye2c4] Black must now prevent Bc4!} Rab8 {[%emt 0:00:
43]} 25. Qf3 $40 {[%emt 0:00:22] Bc4 is the strong threat. White is out for
blood.} Qg5 $2 {[%emt 0:03:46] [#] A mistake that costs the game.} (25... Qxa2
$16 26. b4 (26. Qf6 Qxb2 27. Qa6 Qe5 $11) 26... Kf8) 26. Nf6+ $18 {[%emt 0:00:
36]} (26. Bc4 $2 Ne5 27. Bxf7+ (27. Nf6+ $2 Kh8 $19) 27... Kf8 $19) 26... Kg7 {
[%emt 0:00:48]} 27. Ne4 {[%emt 0:00:10]} Qa5 {[%emt 0:01:46]} (27... Qf4 {
was necessary.} 28. Nxd2 Rxb2 29. Qc3+ Qd4 30. Qxd4+ Rxd4) 28. Qf6+ {[%emt 0:
01:27] White is clearly winning.} ({Less strong is} 28. Rxd2 Rxd2 29. Qf6+ (29.
Nxd2 Qxd2 30. Bc4 Qf4 $16) (29. Bc4 Rd7 $11) 29... Kg8 30. Nxd2 (30. Bc4 Rd7
$11) 30... Qxd2 $16) 28... Kg8 {[%emt 0:00:33]} 29. Bc4 {[%emt 0:03:29]} Ne5 {
[%emt 0:02:01]} 30. Nxd2 {[%emt 0:01:01]} Rxd2 {[%emt 0:01:32]} 31. Rxd2 {
[%emt 0:00:29]} Nxc4 {[%emt 0:00:02]} 32. Rd4 {[%emt 0:00:13] Weighted Error
Value: White=0.08 (flawless) /Black=0.48} 1-0

[Event "44th Chess Olympiad Open 2022"]
[Site "Chennai"]
[Date "2022.08.01"]
[Round "4.45"]
[White "Mehmeti, Dritan"]
[Black "Salim Issa, Ali Shamas"]
[Result "1-0"]
[WhiteElo "2371"]
[BlackElo "1851"]
[Annotator "TA"]
[PlyCount "87"]
[EventDate "2022.??.??"]
[TimeControl "60"]

{[%evp 9,87,3,4,-8,20,18,12,20,22,10,8,-6,8,0,11,7,19,26,27,26,25,25,26,25,25,
25,33,33,23,13,17,14,20,21,22,-9,20,16,37,25,33,24,38,30,77,75,152,153,263,277,
257,189,667,662,664,680,675,650,830,694,682,629,911,880,1118,1085,1472,1487,
29986,29987,29987,29988,29988,29981,29984,29985,29991,29986,29992,29993]} 1. d4
{[%emt 0:00:34]} Nf6 {[%emt 0:00:14]} 2. Bg5 {[%emt 0:00:15]} d5 {[%emt 0:00:
00]} 3. Bxf6 {[%emt 0:00:28]} exf6 {[%emt 0:00:16]} 4. e3 {[%emt 0:00:07]} c5 {
[%emt 0:00:22]} 5. c3 {[%emt 0:04:25]} Nc6 {[%emt 0:00:20]} 6. Nd2 {[%emt 0:00:
00] D00:1 d4 d5: Unusual lines.} Be6 {[%emt 0:01:32]} 7. dxc5 {[%emt 0:09:56]}
Bxc5 {[%emt 0:00:50]} 8. Nb3 {[%emt 0:00:26] The position is equal.} Bb6 {
[%emt 0:00:22]} 9. Nf3 {[%emt 0:02:22]} O-O {[%emt 0:00:31]} 10. Be2 {[%emt 0:
00:00]} Re8 {[%emt 0:00:16]} 11. O-O {[%emt 0:00:10] [#]} g6 $146 {[%emt 0:00:
00]} ({Predecessor:} 11... Qe7 12. Re1 Rad8 13. Nbd4 Ne5 14. a4 a6 15. Qb3 Bc7
16. Rad1 Bb8 17. g3 Bh3 {1-0 (40) Gulko,A (2093)-Richardson,R (1941) Toronto
2004}) 12. Qd2 {[%emt 0:02:55]} f5 {[%emt 0:00:38]} 13. Rad1 {[%emt 0:02:23]}
Qf6 {[%emt 0:00:28]} 14. Nbd4 {[%emt 0:04:10][%cal Yb3d4,Yd4c2,Yc2b4,Yb4d3]}
Rad8 {[%emt 0:01:20]} 15. g3 {[%emt 0:01:28]} Bd7 {[%emt 0:00:32]} 16. Rfe1 {
[%emt 0:01:18]} Kg7 {[%emt 0:00:30]} 17. Bf1 {[%emt 0:00:46]} h6 {[%emt 0:00:
10]} 18. Bg2 {[%emt 0:01:22]} g5 {[%emt 0:00:50]} 19. Nc2 {[%emt 0:00:00]} Be6
{[%emt 0:03:02]} 20. a3 {[%emt 0:04:31]} Bc8 {[%emt 0:03:36]} 21. Nb4 {[%emt 0:
00:59]} Ne7 {[%emt 0:01:33]} 22. Nd4 {[%emt 0:01:06]} a5 {[%emt 0:00:00]} 23.
Nd3 {[%emt 0:01:54]} Ng6 {[%emt 0:00:10]} 24. b4 {[%emt 0:02:14]} f4 {[%emt 0:
00:44]} 25. exf4 {[%emt 0:02:07][%cal Ye3f4,Yf4g5,Yg5h6]} Rxe1+ {[%emt 0:00:23]
} 26. Rxe1 {[%emt 0:02:18]} Bxd4 {[%emt 0:00:33]} (26... gxf4 $1 $11 {is
superior.} 27. Nc5 (27. Nxf4 Nxf4 28. Qxf4 Qxf4 $14) (27. gxf4 axb4 28. axb4
Bxd4 $15) 27... Ne5) 27. cxd4 $16 {[%emt 0:00:06] And now fxg5 would win.
Black is on the road to losing.} Qxd4 {[%emt 0:00:21]} (27... gxf4 $142 28. Ne5
(28. gxf4 Qxd4 29. Qe3 Qxe3 $11) (28. Nxf4 Nxf4 29. Qxf4 Qxf4 $14) (28. bxa5
Qxd4 29. Qd1 Qf6 $14) 28... axb4) 28. fxg5 {[%emt 0:01:04]} axb4 {[%emt 0:01:
08]} (28... hxg5 $16 29. Qxg5 f6) 29. gxh6+ $18 {[%emt 0:02:56]} Kh7 {[%emt 0:
07:52]} 30. axb4 {[%emt 0:00:43]} Bf5 $2 {[%emt 0:00:14] [#]} (30... Be6 31. h4
Rg8) 31. Qg5 $1 {[%emt 0:02:54][%csl Yd8,Yf5]} Bxd3 {[%emt 0:00:00]} 32. Qxd8 {
[%emt 0:00:11]} Qxb4 {[%emt 0:00:15]} 33. Qe8 {[%emt 0:03:39]} Be4 {[%emt 0:01:
05]} 34. Qxf7+ {[%emt 0:02:14]} Kxh6 {[%emt 0:00:08]} 35. Rf1 {[%emt 0:05:54]}
Bxg2 {[%emt 0:00:55]} 36. Kxg2 {[%emt 0:00:06] Endgame KQR-KQN} d4 {[%emt 0:01:
10]} 37. Qd5 {[%emt 0:02:20]} Qd2 {[%emt 0:00:00]} 38. Rb1 {[%emt 0:02:10] [#]
White threatens h4 and mate.} d3 {[%emt 0:00:00]} 39. Rb6 {[%emt 0:01:11]
White mates.} Qe2 {[%emt 0:00:52]} 40. Qf5 {[%emt 0:05:33][%csl Gb6][%cal
Rf5g6]} Qe8 {[%emt 0:08:38]} 41. Qxd3 {[%emt 0:00:00]} Qf7 {[%emt 0:30:17]} 42.
Qe4 {[%emt 0:00:25]} Qg8 {[%emt 0:02:03]} 43. Qf4+ {[%emt 0:07:14]} Kg7 {
[%emt 0:01:36]} 44. Rxb7+ {[%emt 0:00:12] Weighted Error Value: White=0.09 
(flawless) /Black=0.62} 1-0

[Event "44th Chess Olympiad Open 2022"]
[Site "Chennai"]
[Date "2022.08.01"]
[Round "4.45"]
[White "Salim Mohammed, Salim Al Amri"]
[Black "Ashiku, Franc"]
[Result "0-1"]
[WhiteElo "1917"]
[BlackElo "2422"]
[Annotator "TA"]
[PlyCount "122"]
[EventDate "2022.??.??"]
[TimeControl "60"]

{[%evp 19,121,14,16,-6,3,1,27,24,13,0,10,33,12,5,59,59,48,-28,34,28,52,42,52,
55,61,54,46,21,68,64,191,49,61,71,71,0,0,-216,-79,-263,-270,-441,-279,-585,
-582,-608,-575,-913,-968,-953,-547,-547,-538,-497,-535,-521,-497,-481,-467,
-731,-811,-772,-717,-1686,-1242,-29977,-29978,-29980,-29979,-29979,-29980,
-29980,-29981,-29981,-29982,-29982,-29983,-29983,-29984,-29984,-29984,-29987,
-29988,-29988,-29989,-29989,-29990,-29990,-29991,-29992,-29991,-29992,-29992,
-29992,-29992,-29992,-29993,-29993,-29994,-29997,-29998,-29998,-29999,-29999]} 
1. d4 {[%emt 0:00:24]} Nf6 {[%emt 0:01:03]} 2. c4 {[%emt 0:00:18]} g6 {[%emt 0:
00:00]} 3. Nc3 {[%emt 0:00:33]} Bg7 {[%emt 0:01:27]} 4. e4 {[%emt 0:00:15]} d6
{[%emt 0:00:03]} 5. Nf3 {[%emt 0:00:08]} O-O {[%emt 0:00:26]} 6. Be2 {[%emt 0:
00:00]} Na6 {[%emt 0:00:14]} 7. O-O {[%emt 0:01:10]} e5 {[%emt 0:00:05]} 8. d5
{[%emt 0:01:34]} Nc5 {[%emt 0:02:39]} 9. Qc2 {[%emt 0:00:05]} a5 {[%emt 0:00:
00]} 10. Ne1 {[%emt 0:00:13]} Nfd7 {[%emt 0:05:06]} 11. b3 {[%emt 0:00:45] E94:
King's Indian: Classical: 6 Be2 e5 7 0-0: Various Black 7th moves.} f5 {
[%emt 0:00:10]} 12. f3 {[%emt 0:00:03]} f4 {[%emt 0:01:34]} 13. a3 {[%emt 0:00:
00] White has an edge.} g5 {[%emt 0:02:40]} 14. Rb1 {[%emt 0:00:05] [#]} a4
$146 {[%emt 0:01:27]} ({Predecessor:} 14... Nf6 15. b4 Ncd7 16. Nd3 Ne8 17. c5
Ndf6 18. Nf2 h5 19. h3 Rf7 20. Bd2 Bf8 {1-0 (57) Kinnunen,K (2220)-Vinke,D 
(2188) Finland 2007}) 15. Nxa4 {[%emt 0:01:55]} Nxa4 {[%emt 0:02:26]} 16. bxa4
{[%emt 0:00:02]} Rf7 {[%emt 0:03:23]} (16... Nc5 $11) 17. Nd3 $14 {[%emt 0:00:
00]} Bf8 {[%emt 0:01:31]} 18. g4 {[%emt 0:02:25]} (18. Bd2 $14) 18... fxg3 {
[%emt 0:04:53]} (18... h5 $11) 19. hxg3 {[%emt 0:00:34]} b6 {[%emt 0:04:54]}
20. Bd2 {[%emt 0:04:21]} Qf6 {[%emt 0:03:46]} 21. Rf2 {[%emt 0:02:43][%cal
Ya4a5]} Qg6 {[%emt 0:02:33]} 22. g4 {[%emt 0:05:36]} Nf6 {[%emt 0:04:21]} 23.
a5 {[%emt 0:01:43]} bxa5 {[%emt 0:00:08]} (23... h5 $11) 24. c5 {[%emt 0:00:40]
} h5 {[%emt 0:07:24] [#]} (24... Ba6 $14) 25. gxh5 {[%emt 0:01:18]} (25. cxd6
$1 $18 cxd6 26. Qc6) 25... Qxh5 {[%emt 0:02:39] ...Rh7 is the strong threat.}
26. Rh2 {[%emt 0:01:35]} Qg6 {[%emt 0:00:32]} 27. Rg2 {[%emt 0:02:34]} (27.
cxd6 $16 cxd6 28. Qc6) 27... g4 $11 {[%emt 0:00:39][%cal Yg5g4,Yg4g3]} 28. c6
$2 {[%emt 0:08:52] White is now going downhill.} (28. cxd6 $11 {and White is
okay.} cxd6 29. Qc6) 28... Rh7 {[%emt 0:04:29]} (28... g3 $19 {has better
winning chances. Threatens to win with ...Bh3.} 29. Nf2 Nh5) 29. Nf2 {[%emt 0:
01:09]} (29. fxg4 $17 {was forced.} Qxe4 30. Rf1 Nxd5 31. Bf3 Qd4+ 32. Nf2)
29... g3 $19 {[%emt 0:04:09]} 30. Nh1 $2 {[%emt 0:00:47]} (30. f4 Rg7 31. Nh1
Nxe4 32. Bd3) 30... Rh3 {[%emt 0:00:58] Strongly threatening ...Nh5.} 31. Rf1
$2 {[%emt 0:05:45]} (31. Qc1 Nh5 32. Nf2 gxf2+ 33. Kxf2) 31... Nh5 {[%emt 0:02:
08]} 32. f4 {[%emt 0:00:41]} exf4 {[%emt 0:07:46]} 33. Bxf4 {[%emt 0:00:27]}
Nxf4 {[%emt 0:03:00]} 34. Rxf4 {[%emt 0:00:12] [#]} Rxh1+ $1 {[%emt 0:03:00]}
35. Kxh1 {[%emt 0:00:02] aiming for Rf3.} Qh6+ {[%emt 0:00:06]} 36. Kg1 {
[%emt 0:01:33]} Qxf4 {[%emt 0:00:05]} 37. Qc3 {[%emt 0:00:24]} Rb8 {[%emt 0:04:
52] ( -> ...Rb1+)} 38. Rxg3+ {[%emt 0:00:38] [#]} Kh7 $1 {[%emt 0:00:07]} 39.
Rf3 {[%emt 0:08:47]} (39. Qf3 $142 Qxf3 40. Rxf3) 39... Rb1+ {[%emt 0:01:45]}
40. Bf1 {[%emt 0:02:15]} Qg4+ {[%emt 0:03:13]} 41. Kf2 {[%emt 0:33:39]} Bg7 {
[%emt 0:33:19]} 42. e5 {[%emt 0:00:04]} Qh4+ {[%emt 0:04:01] Black mates.} 43.
Rg3 {[%emt 0:10:09]} Bxe5 {[%emt 0:00:44]} 44. Bd3+ {[%emt 0:00:24]} Kh8 {
[%emt 0:00:23]} 45. Qxe5+ {[%emt 0:00:17]} dxe5 {[%emt 0:00:25]} 46. Bxb1 {
[%emt 0:00:11]} Qf4+ {[%emt 0:00:42]} 47. Kg2 {[%emt 0:02:42]} Qd2+ {[%emt 0:
00:21]} 48. Kf3 {[%emt 0:00:47]} Qd1+ {[%emt 0:00:00]} 49. Kg2 {[%emt 0:00:08]}
Qxb1 {[%emt 0:00:20]} 50. a4 {[%emt 0:00:08]} Qc2+ {[%emt 0:00:40]} 51. Kg1 {
[%emt 0:00:16]} Qd1+ {[%emt 0:00:09]} 52. Kh2 {[%emt 0:00:10]} e4 {[%emt 0:00:
30]} 53. d6 {[%emt 0:00:05]} Qxd6 {[%emt 0:00:00]} 54. Kh1 {[%emt 0:00:04]}
Qd1+ {[%emt 0:00:29]} 55. Kh2 {[%emt 0:00:04]} Bg4 {[%emt 0:00:51]} 56. Rg2 {
[%emt 0:00:34]} Bf3 {[%emt 0:00:13]} 57. Rg6 {[%emt 0:00:05]} Qh1+ {[%emt 0:00:
13]} 58. Kg3 {[%emt 0:00:01]} Qg1+ {[%emt 0:00:00]} 59. Kh4 {[%emt 0:00:09]}
Qxg6 {[%emt 0:00:15][%csl Gf3][%cal Rg6g4]} 60. Kh3 {[%emt 0:00:05]} Kg8 {
[%emt 0:00:12]} 61. Kh4 {[%emt 0:00:04]} Qg4# {[%emt 0:01:31] Weighted Error
Value: White=0.91/Black=0.50} 0-1

[Event "44th Chess Olympiad Open 2022"]
[Site "Chennai"]
[Date "2022.08.01"]
[Round "4.45"]
[White "Al Busaidi, Hamood"]
[Black "Veleshnja, Zino"]
[Result "0-1"]
[WhiteElo "1743"]
[BlackElo "2263"]
[Annotator "NA RC"]
[PlyCount "80"]
[EventDate "2022.??.??"]
[TimeControl "60"]

1. e4 {[%emt 0:00:05]} c5 {[%emt 0:00:12]} 2. Nf3 {[%emt 0:00:05]} d6 {[%emt 0:
00:00]} 3. d3 {[%emt 0:00:13]} Nf6 {[%emt 0:00:24]} 4. g3 {[%emt 0:00:15]} g6 {
[%emt 0:00:30]} 5. Bg2 {[%emt 0:00:05]} Bg7 {[%emt 0:00:09]} 6. O-O {[%emt 0:
00:00]} O-O {[%emt 0:00:04]} 7. Nc3 {[%emt 0:00:15]} Nc6 {[%emt 0:00:42]} 8. h3
{[%emt 0:00:04]} Rb8 {[%emt 0:01:00]} 9. a4 {[%emt 0:02:05]} a6 {[%emt 0:01:05]
} 10. Be3 {[%emt 0:00:13]} b5 {[%emt 0:07:03]} 11. axb5 {[%emt 0:00:24]} axb5 {
[%emt 0:03:29]} 12. Ne2 {[%emt 0:00:54]} Bb7 {[%emt 0:01:25]} 13. c3 {[%emt 0:
00:00]} e5 {[%emt 0:04:52]} 14. Nd2 {[%emt 0:02:33]} Qe7 {[%emt 0:03:23]} 15.
f4 {[%emt 0:11:53]} exf4 {[%emt 0:03:47]} 16. gxf4 {[%emt 0:14:58]} Bh6 {
[%emt 0:03:31]} 17. d4 {[%emt 0:29:09]} cxd4 {[%emt 0:02:45]} 18. cxd4 {
[%emt 0:01:04]} Nd5 {[%emt 0:06:55]} 19. Qb3 {[%emt 0:05:10]} Nxe3 {[%emt 0:00:
00]} 20. Qxe3 {[%emt 0:00:31]} d5 {[%emt 0:08:12]} 21. e5 {[%emt 0:04:21]} Nb4
{[%emt 0:05:54]} 22. Rfc1 {[%emt 0:03:45]} Rfc8 {[%emt 0:04:29]} 23. Rxc8+ {
[%emt 0:08:38]} Bxc8 {[%emt 0:02:07]} 24. Qc3 {[%emt 0:02:14]} Bf5 {[%emt 0:00:
00]} 25. Nb3 {[%emt 0:03:08]} Bd3 {[%emt 0:08:40]} 26. Nec1 {[%emt 0:04:14]}
Be4 {[%emt 0:01:03]} 27. Bxe4 {[%emt 0:05:08]} dxe4 {[%emt 0:00:05]} 28. Ne2 {
[%emt 0:00:28]} Nd3 {[%emt 0:02:08]} 29. Qc6 {[%emt 0:01:25]} Qh4 {[%emt 0:00:
00]} 30. Qxe4 {[%emt 0:00:22]} Nf2 {[%emt 0:04:35]} 31. Qf3 {[%emt 0:00:35]}
Nxh3+ {[%emt 0:00:12]} 32. Kg2 {[%emt 0:00:32]} Nxf4+ {[%emt 0:00:11]} 33. Nxf4
{[%emt 0:00:23]} Bxf4 {[%emt 0:00:29]} 34. Rh1 {[%emt 0:00:21]} Qg5+ {[%emt 0:
00:00]} 35. Kf2 {[%emt 0:00:07]} Rc8 {[%emt 0:00:44]} 36. Nc5 {[%emt 0:00:13]}
Bxe5 {[%emt 0:01:04]} 37. Rxh7 {[%emt 0:00:32]} Bxd4+ {[%emt 0:00:24]} 38. Ke2
{[%emt 0:00:14]} Kxh7 {[%emt 0:01:05]} 39. Qxf7+ {[%emt 0:00:37]} Kh6 {[%emt 0:
00:00]} 40. Ne6 {[%emt 0:01:09]} Qe3+ {[%emt 0:00:13]} 0-1